[Event "Championnat d'Europe de Blitz"]
[Date "2024.12.09"]
[White "Biljanic, Ljubomir"]
[Black "Vuckovic, Zarko"]
[WhiteElo "2130"]
[BlackElo "2334"]
[Round "10.42"]
[Result "0-1"]
[TimeControl "180+2"]

1. d4 {[%emt 00:16:11] [%clk 00:03:02]} Nf6 {[%emt 00:00:01] [%clk 00:03:03]} 2.
Nf3 {[%emt 00:00:02] [%clk 00:03:03]} d5 {[%emt 00:00:03] [%clk 00:03:04]} 3. c4
{[%clk 00:03:03]} e6 {[%clk 00:03:05]} 4. Nc3 {[%clk 00:03:04]} c6 {[%emt
00:00:04] [%clk 00:03:04]} 5. Bg5 {[%emt 00:00:03] [%clk 00:03:02]} Nbd7 {[%emt
00:00:02] [%clk 00:03:05]} 6. a3 {[%emt 00:00:08] [%clk 00:02:55]} h6 {[%emt
00:00:14] [%clk 00:02:54]} 7. Bxf6 {[%emt 00:00:04] [%clk 00:02:53]} Nxf6 {[%emt
00:00:05] [%clk 00:02:50]} 8. e3 {[%emt 00:00:06] [%clk 00:02:50]} Bd6 {[%emt
00:00:08] [%clk 00:02:45]} 9. Qc2 {[%emt 00:00:12] [%clk 00:02:39]} O-O {[%emt
00:00:02] [%clk 00:02:45]} 10. Be2 {[%emt 00:00:26] [%clk 00:02:15]} b6 {[%emt
00:00:22] [%clk 00:02:26]} 11. O-O {[%emt 00:00:05] [%clk 00:02:11]} Bb7 {[%emt
00:00:01] [%clk 00:02:27]} 12. Rac1 {[%emt 00:00:02] [%clk 00:02:10]} Rc8 {[%emt
00:00:02] [%clk 00:02:28]} 13. b4 {[%emt 00:00:11] [%clk 00:02:01]} c5 {[%emt
00:00:09] [%clk 00:02:21]} 14. dxc5 {[%emt 00:00:15] [%clk 00:01:48]} bxc5
{[%emt 00:00:01] [%clk 00:02:22]} 15. b5 {[%emt 00:00:08] [%clk 00:01:42]} d4
{[%emt 00:00:15] [%clk 00:02:09]} 16. exd4 {[%emt 00:00:13] [%clk 00:01:31]}
Bxf3 {[%emt 00:00:11] [%clk 00:02:00]} 17. Bxf3 {[%emt 00:00:25] [%clk
00:01:08]} cxd4 {[%emt 00:00:02] [%clk 00:02:01]} 18. Ne4 {[%emt 00:00:33] [%clk
00:00:36]} Nxe4 {[%emt 00:00:02] [%clk 00:02:02]} 19. Bxe4 {[%emt 00:00:02]
[%clk 00:00:36]} Bxa3 {[%emt 00:00:02] [%clk 00:02:02]} 20. Ra1 {[%emt 00:00:21]
[%clk 00:00:16]} Bc5 {[%emt 00:00:02] [%clk 00:02:03]} 21. Qe2 {[%emt 00:00:03]
[%clk 00:00:14]} Bb6 {[%emt 00:00:04] [%clk 00:02:01]} 22. Bd3 {[%emt 00:00:02]
[%clk 00:00:14]} Rc5 {[%emt 00:00:04] [%clk 00:02:00]} 23. Qf3 {[%emt 00:00:03]
[%clk 00:00:12]} Qf6 {[%emt 00:00:05] [%clk 00:01:57]} 24. Qe4 {[%emt 00:00:02]
[%clk 00:00:12]} g6 {[%emt 00:00:02] [%clk 00:01:57]} 25. Rfe1 {[%emt 00:00:02]
[%clk 00:00:12]} Kg7 {[%emt 00:00:01] [%clk 00:01:58]} 26. Re2 {[%emt 00:00:01]
[%clk 00:00:13]} Rd8 {[%emt 00:00:01] [%clk 00:01:58]} 27. Rae1 {[%emt 00:00:01]
[%clk 00:00:14]} Ba5 {[%emt 00:00:01] [%clk 00:01:59]} 28. Ra1 {[%emt 00:00:01]
[%clk 00:00:14]} Bb6 {[%clk 00:02:01]} 29. Rae1 {[%emt 00:00:02] [%clk
00:00:15]} h5 {[%emt 00:00:05] [%clk 00:01:58]} 30. Qb7 {[%emt 00:00:24]} Rc7
{[%clk 00:01:36]} 31. Qe4 {[%emt 00:00:02] [%clk 00:00:17]} Rh8 {[%emt 00:00:03]
[%clk 00:01:34]} 32. h3 {[%emt 00:00:02] [%clk 00:00:18]} h4 {[%emt 00:00:01]
[%clk 00:01:35]} 33. Ra2 {[%emt 00:00:03] [%clk 00:00:17]} Rh5 {[%emt 00:00:02]
[%clk 00:01:35]} 34. Qe2 {[%emt 00:00:04]} Rcc5 {[%clk 00:01:35]} 35. Ra3 {[%emt
00:00:01] [%clk 00:00:18]} Qf4 {[%emt 00:00:07] [%clk 00:01:29]} 36. Qe4 {[%emt
00:00:08] [%clk 00:00:12]} Qd6 {[%emt 00:00:01] [%clk 00:01:30]} 37. Qf3 {[%emt
00:00:02] [%clk 00:00:12]} Bc7 {[%emt 00:00:08] [%clk 00:01:24]} 38. Rxa7 {[%emt
00:00:02] [%clk 00:00:12]} Qh2+ {[%emt 00:00:02] [%clk 00:01:24]} 39. Kf1 {[%clk
00:00:13]} Rhe5 {[%emt 00:00:12] [%clk 00:01:14]} 40. Re4 {[%emt 00:00:02] [%clk
00:00:13]} Rxe4 {[%emt 00:00:06] [%clk 00:01:11]} 41. Bxe4 {[%emt 00:00:02]
[%clk 00:00:14]} Rxc4 {[%emt 00:00:06] [%clk 00:01:07]} 42. b6 {[%emt 00:00:03]
[%clk 00:00:13]} Qh1+ {[%emt 00:00:10] [%clk 00:00:59]} 43. Ke2 {[%emt 00:00:01]
[%clk 00:00:14]} Rc1 {[%clk 00:01:00]} 0-1

[Site "Europe Echecs"]

[Event "Championnat d'Europe de Blitz"]
[Date "2024.12.09"]
[White "Arnaudov, G. Petar"]
[Black "Mueller, Magnus"]
[WhiteElo "2401"]
[BlackElo "2166"]
[Round "10.43"]
[Result "1/2-1/2"]
[TimeControl "180+2"]

1. Nf3 {[%clk 00:03:02]} d5 {[%emt 00:00:02] [%clk 00:03:03]} 2. c4 {[%emt
00:00:03] [%clk 00:03:03]} e6 {[%emt 00:00:06] [%clk 00:02:58]} 3. g3 {[%emt
00:00:01] [%clk 00:03:04]} dxc4 {[%emt 00:00:01] [%clk 00:02:59]} 4. Bg2 {[%clk
00:03:06]} Nd7 {[%emt 00:00:04] [%clk 00:02:57]} 5. O-O {[%emt 00:00:02] [%clk
00:03:06]} a6 {[%emt 00:00:06] [%clk 00:02:53]} 6. Qc2 {[%emt 00:00:08] [%clk
00:02:59]} Ngf6 {[%emt 00:00:05] [%clk 00:02:50]} 7. Rd1 {[%emt 00:00:10] [%clk
00:02:51]} Be7 {[%emt 00:00:19] [%clk 00:02:34]} 8. Na3 {[%emt 00:00:01] [%clk
00:02:52]} Bxa3 {[%emt 00:00:08] [%clk 00:02:28]} 9. bxa3 {[%emt 00:00:01] [%clk
00:02:53]} Rb8 {[%emt 00:00:04] [%clk 00:02:25]} 10. a4 {[%emt 00:00:37] [%clk
00:02:18]} O-O {[%emt 00:00:11] [%clk 00:02:16]} 11. Ba3 {[%emt 00:00:08] [%clk
00:02:12]} c5 {[%emt 00:00:07] [%clk 00:02:11]} 12. Qxc4 {[%emt 00:00:34] [%clk
00:01:41]} b5 {[%clk 00:02:12]} 13. Qc2 {[%emt 00:00:01] [%clk 00:01:42]} Qb6
{[%emt 00:00:36] [%clk 00:01:37]} 14. Rac1 {[%emt 00:00:17] [%clk 00:01:28]} b4
{[%emt 00:00:05] [%clk 00:01:34]} 15. Bb2 {[%emt 00:00:02] [%clk 00:01:28]} Bb7
{[%emt 00:00:08] [%clk 00:01:27]} 16. d3 {[%emt 00:00:03] [%clk 00:01:28]} Bd5
{[%emt 00:00:12] [%clk 00:01:16]} 17. Nd2 {[%emt 00:00:23] [%clk 00:01:07]} Bxa2
{[%emt 00:00:44] [%clk 00:00:35]} 18. Nc4 {[%emt 00:00:26] [%clk 00:00:42]} Bxc4
{[%emt 00:00:05] [%clk 00:00:32]} 19. Qxc4 {[%emt 00:00:08] [%clk 00:00:37]} Qa5
{[%emt 00:00:14] [%clk 00:00:20]} 20. g4 {[%emt 00:00:20] [%clk 00:00:18]} Rfc8
{[%emt 00:00:04] [%clk 00:00:19]} 21. g5 {[%emt 00:00:03] [%clk 00:00:17]} Nd5
{[%emt 00:00:01] [%clk 00:00:19]} 22. Bxd5 {[%emt 00:00:14] [%clk 00:00:06]} Nb6
{[%emt 00:00:01] [%clk 00:00:19]} 23. Qh4 {[%emt 00:00:02] [%clk 00:00:05]} Nxd5
{[%emt 00:00:03] [%clk 00:00:20]} 24. Qg3 {[%emt 00:00:02] [%clk 00:00:05]} Qxa4
{[%emt 00:00:06] [%clk 00:00:17]} 25. Qe5 {[%emt 00:00:01] [%clk 00:00:05]} Nc3
{[%emt 00:00:02] [%clk 00:00:17]} 26. Rxc3 {[%emt 00:00:02] [%clk 00:00:05]}
Qxd1+ {[%emt 00:00:02] [%clk 00:00:17]} 27. Kg2 {[%clk 00:00:06]} bxc3 {[%emt
00:00:15] [%clk 00:00:03]} 28. Bxc3 {[%emt 00:00:01] [%clk 00:00:08]} f6 {[%emt
00:00:01] [%clk 00:00:05]} 29. Qxe6+ {[%clk 00:00:08]} Kh8 {[%clk 00:00:06]} 30.
gxf6 {[%emt 00:00:02]} Rg8 {[%emt 00:00:03] [%clk 00:00:04]} 31. fxg7+ {[%emt
00:00:02] [%clk 00:00:10]} Rxg7+ {[%clk 00:00:06]} 32. Bxg7+ {[%emt 00:00:02]
[%clk 00:00:10]} Kxg7 {[%emt 00:00:01] [%clk 00:00:07]} 33. Qe5+ {[%clk
00:00:11]} Kg6 {[%emt 00:00:01] [%clk 00:00:07]} 34. Qd6+ {[%emt 00:00:02] [%clk
00:00:12]} Kg7 {[%emt 00:00:02] [%clk 00:00:08]} 35. Qc7+ {[%emt 00:00:01] [%clk
00:00:12]} Kg6 {[%clk 00:00:09]} 36. Qd6+ {[%emt 00:00:01] [%clk 00:00:13]} Kg7
{[%clk 00:00:10]} 37. Qg3+ {[%emt 00:00:02] [%clk 00:00:13]} Kh6 {[%emt
00:00:04] [%clk 00:00:08]} 38. Qf4+ {[%emt 00:00:03] [%clk 00:00:12]} Kg6 {[%clk
00:00:09]} 39. Qxb8 {[%emt 00:00:02] [%clk 00:00:12]} Qxe2 {[%emt 00:00:02]
[%clk 00:00:09]} 40. Qd6+ {[%emt 00:00:01] [%clk 00:00:12]} Kg7 {[%emt 00:00:02]
[%clk 00:00:10]} 41. Qxa6 {[%emt 00:00:05] [%clk 00:00:09]} Qg4+ {[%emt
00:00:01] [%clk 00:00:11]} 42. Kf1 {[%clk 00:00:11]} Qd1+ {[%clk 00:00:12]} 43.
Kg2 {[%clk 00:00:12]} Qg4+ {[%clk 00:00:14]} 44. Kf1 {[%emt 00:00:02] [%clk
00:00:09]} 1/2-1/2

[Site "Europe Echecs"]

[Event "Championnat d'Europe de Blitz"]
[Date "2024.12.09"]
[White "Kesidis, Odyseas"]
[Black "Nikolovski, Nikola"]
[WhiteElo "2241"]
[BlackElo "2407"]
[Round "10.44"]
[Result "0-1"]
[TimeControl "180+2"]

1. e4 {[%emt 00:00:01] [%clk 00:03:02]} d5 {[%emt 00:00:03] [%clk 00:03:03]} 2.
exd5 {[%clk 00:03:02]} Qxd5 {[%emt 00:00:02] [%clk 00:03:04]} 3. Nc3 {[%emt
00:00:01] [%clk 00:03:03]} Qa5 {[%emt 00:00:01] [%clk 00:03:05]} 4. Bc4 {[%emt
00:00:02] [%clk 00:03:02]} Nf6 {[%emt 00:00:09] [%clk 00:02:58]} 5. d3 {[%emt
00:00:02] [%clk 00:03:03]} Bg4 {[%emt 00:00:32] [%clk 00:02:28]} 6. f3 {[%emt
00:00:04] [%clk 00:03:00]} Bf5 {[%emt 00:00:07] [%clk 00:02:23]} 7. Bd2 {[%emt
00:00:03] [%clk 00:02:59]} c6 {[%emt 00:00:07] [%clk 00:02:19]} 8. Qe2 {[%emt
00:00:01] [%clk 00:02:59]} e6 {[%emt 00:00:07] [%clk 00:02:15]} 9. O-O-O {[%emt
00:00:05] [%clk 00:02:55]} Qc7 {[%emt 00:00:07] [%clk 00:02:11]} 10. g4 {[%emt
00:00:04] [%clk 00:02:53]} Bg6 {[%emt 00:00:01] [%clk 00:02:11]} 11. f4 {[%emt
00:00:02] [%clk 00:02:53]} Be7 {[%emt 00:00:14] [%clk 00:01:59]} 12. Re1 {[%emt
00:00:02] [%clk 00:02:53]} b5 {[%emt 00:00:29] [%clk 00:01:33]} 13. Bb3 {[%emt
00:00:12] [%clk 00:02:43]} a5 {[%emt 00:00:01] [%clk 00:01:34]} 14. a4 {[%emt
00:00:03] [%clk 00:02:42]} b4 {[%emt 00:00:02] [%clk 00:01:34]} 15. Ne4 {[%emt
00:00:04] [%clk 00:02:39]} Bxe4 {[%emt 00:00:10] [%clk 00:01:26]} 16. dxe4
{[%emt 00:00:03] [%clk 00:02:39]} Na6 {[%emt 00:00:01] [%clk 00:01:27]} 17. g5
{[%emt 00:00:05] [%clk 00:02:36]} Nd7 {[%emt 00:00:03] [%clk 00:01:26]} 18. f5
{[%emt 00:00:06] [%clk 00:02:31]} Nac5 {[%emt 00:00:08] [%clk 00:01:21]} 19.
fxe6 {[%emt 00:00:39] [%clk 00:01:54]} Nxb3+ {[%emt 00:00:07] [%clk 00:01:16]}
20. cxb3 {[%clk 00:01:55]} fxe6 {[%emt 00:00:01] [%clk 00:01:17]} 21. Qc4 {[%emt
00:00:15] [%clk 00:01:42]} Qd6 {[%emt 00:00:05] [%clk 00:01:14]} 22. Nf3 {[%emt
00:00:09] [%clk 00:01:34]} Nb6 {[%emt 00:00:19] [%clk 00:00:57]} 23. Qe2 {[%emt
00:00:12] [%clk 00:01:24]} O-O {[%emt 00:00:02] [%clk 00:00:57]} 24. Be3 {[%emt
00:00:09] [%clk 00:01:17]} c5 {[%emt 00:00:03] [%clk 00:00:56]} 25. Rd1 {[%emt
00:00:03] [%clk 00:01:17]} Qc6 {[%emt 00:00:02] [%clk 00:00:56]} 26. Bf2 {[%emt
00:00:22] [%clk 00:00:57]} Nxa4 {[%emt 00:00:25] [%clk 00:00:33]} 27. Ne5 {[%emt
00:00:12] [%clk 00:00:47]} Qc7 {[%emt 00:00:08] [%clk 00:00:27]} 28. Bg3 {[%emt
00:00:03] [%clk 00:00:46]} Bxg5+ {[%emt 00:00:10] [%clk 00:00:19]} 29. Kb1
{[%emt 00:00:01] [%clk 00:00:47]} Nb6 {[%clk 00:00:20]} 30. Ng6 {[%emt 00:00:09]
[%clk 00:00:40]} Qa7 {[%emt 00:00:01] [%clk 00:00:20]} 31. Nxf8 {[%emt 00:00:02]
[%clk 00:00:40]} a4 {[%emt 00:00:02] [%clk 00:00:21]} 32. Qh5 {[%emt 00:00:26]
[%clk 00:00:15]} axb3 {[%emt 00:00:09] [%clk 00:00:15]} 33. Qxh7+ {[%emt
00:00:01] [%clk 00:00:16]} Kxf8 {[%emt 00:00:01] [%clk 00:00:16]} 34. Qh8+
{[%emt 00:00:02] [%clk 00:00:16]} Kf7 {[%emt 00:00:03] [%clk 00:00:15]} 35. Qh5+
{[%emt 00:00:03] [%clk 00:00:15]} Kg8 {[%emt 00:00:01] [%clk 00:00:15]} 36. Rd8+
{[%emt 00:00:14] [%clk 00:00:04]} Rxd8 {[%emt 00:00:04] [%clk 00:00:12]} 37.
Qxg5 {[%emt 00:00:02] [%clk 00:00:04]} Qa2+ {[%emt 00:00:02] [%clk 00:00:13]}
0-1

[Site "Europe Echecs"]

[Event "Championnat d'Europe de Blitz"]
[Date "2024.12.09"]
[White "Mohr, Georg"]
[Black "Redzisz, Michal"]
[WhiteElo "2385"]
[BlackElo "2263"]
[Round "10.45"]
[Result "0-1"]
[TimeControl "180+2"]

1. d4 {[%emt 00:02:35] [%clk 00:03:04]} Nf6 {[%emt 00:00:05] [%clk 00:03:02]} 2.
Nf3 {[%clk 00:03:04]} d5 {[%emt 00:00:05] [%clk 00:02:58]} 3. e3 {[%emt
00:00:01] [%clk 00:03:04]} c6 {[%emt 00:00:09] [%clk 00:02:52]} 4. Bd3 {[%emt
00:00:02] [%clk 00:03:03]} Bg4 {[%emt 00:00:03] [%clk 00:02:51]} 5. Nbd2 {[%emt
00:00:02] [%clk 00:03:03]} e6 {[%emt 00:00:03] [%clk 00:02:51]} 6. h3 {[%emt
00:00:03] [%clk 00:03:01]} Bh5 {[%emt 00:00:02] [%clk 00:02:52]} 7. O-O {[%emt
00:00:02] [%clk 00:03:01]} Bd6 {[%emt 00:00:07] [%clk 00:02:46]} 8. e4 {[%emt
00:00:07] [%clk 00:02:56]} dxe4 {[%emt 00:00:04] [%clk 00:02:44]} 9. Nxe4 {[%emt
00:00:02] [%clk 00:02:57]} Nxe4 {[%emt 00:00:04] [%clk 00:02:42]} 10. Bxe4
{[%clk 00:02:58]} Nd7 {[%emt 00:00:15] [%clk 00:02:29]} 11. c3 {[%emt 00:00:02]
[%clk 00:02:58]} O-O {[%emt 00:00:17] [%clk 00:02:15]} 12. Bc2 {[%emt 00:00:09]
[%clk 00:02:50]} e5 {[%emt 00:00:13] [%clk 00:02:03]} 13. Re1 {[%emt 00:00:28]
[%clk 00:02:24]} f5 {[%emt 00:01:01] [%clk 00:01:05]} 14. Bb3+ {[%emt 00:00:39]
[%clk 00:01:47]} Kh8 {[%clk 00:01:06]} 15. g4 {[%emt 00:00:21] [%clk 00:01:28]}
fxg4 {[%emt 00:00:03] [%clk 00:01:06]} 16. Ng5 {[%clk 00:01:29]} Qf6 {[%emt
00:00:13] [%clk 00:00:56]} 17. Be3 {[%emt 00:00:06] [%clk 00:01:24]} exd4 {[%emt
00:00:19] [%clk 00:00:39]} 18. cxd4 {[%emt 00:00:06] [%clk 00:01:20]} Rae8
{[%emt 00:00:05] [%clk 00:00:35]} 19. hxg4 {[%emt 00:00:12] [%clk 00:01:10]}
Rxe3 {[%emt 00:00:03] [%clk 00:00:35]} 20. Rxe3 {[%emt 00:00:14] [%clk
00:00:58]} Qxf2+ {[%emt 00:00:02] [%clk 00:00:35]} 21. Kh1 {[%emt 00:00:02]
[%clk 00:00:57]} Qh2# {[%emt 00:00:01] [%clk 00:00:37]} 0-1

[Site "Europe Echecs"]

[Event "Championnat d'Europe de Blitz"]
[Date "2024.12.09"]
[White "Goraj, Barbara"]
[Black "Domingo Nunez, Ruben"]
[WhiteElo "2178"]
[BlackElo "2409"]
[Round "10.46"]
[Result "1-0"]
[TimeControl "180+2"]

1. e4 {[%emt 00:00:01] [%clk 00:03:02]} g6 {[%emt 00:00:03] [%clk 00:03:03]} 2.
d4 {[%clk 00:03:02]} Bg7 {[%clk 00:03:04]} 3. Nc3 {[%emt 00:00:02] [%clk
00:03:02]} c6 {[%emt 00:00:01] [%clk 00:03:06]} 4. Be3 {[%emt 00:00:01] [%clk
00:03:02]} d5 {[%clk 00:03:07]} 5. e5 {[%emt 00:00:01] [%clk 00:03:03]} f6
{[%emt 00:00:01] [%clk 00:03:08]} 6. f4 {[%emt 00:00:02] [%clk 00:03:03]} Nh6
{[%emt 00:00:01] [%clk 00:03:09]} 7. Nf3 {[%emt 00:00:03] [%clk 00:03:02]} Bg4
{[%clk 00:03:10]} 8. Be2 {[%emt 00:00:06] [%clk 00:02:58]} O-O {[%emt 00:00:02]
[%clk 00:03:11]} 9. h3 {[%emt 00:00:06] [%clk 00:02:53]} Bxf3 {[%emt 00:00:02]
[%clk 00:03:12]} 10. Bxf3 {[%emt 00:00:01] [%clk 00:02:53]} Nf5 {[%emt 00:00:03]
[%clk 00:03:11]} 11. Bf2 {[%emt 00:00:03] [%clk 00:02:52]} fxe5 {[%emt 00:00:02]
[%clk 00:03:12]} 12. fxe5 {[%emt 00:00:08] [%clk 00:02:45]} e6 {[%emt 00:00:02]
[%clk 00:03:12]} 13. Qe2 {[%emt 00:00:19] [%clk 00:02:29]} c5 {[%emt 00:00:01]
[%clk 00:03:13]} 14. dxc5 {[%emt 00:00:15] [%clk 00:02:16]} Nc6 {[%emt 00:00:01]
[%clk 00:03:14]} 15. O-O-O {[%emt 00:00:12] [%clk 00:02:05]} Qg5+ {[%emt
00:01:25] [%clk 00:01:51]} 16. Kb1 {[%emt 00:00:02] [%clk 00:02:05]} Rae8 {[%emt
00:00:09] [%clk 00:01:45]} 17. Nb5 {[%emt 00:00:15] [%clk 00:01:52]} Bxe5 {[%emt
00:00:08] [%clk 00:01:38]} 18. Nxa7 {[%emt 00:00:18] [%clk 00:01:36]} Nfd4
{[%emt 00:00:18] [%clk 00:01:23]} 19. Bxd4 {[%emt 00:00:27] [%clk 00:01:11]}
Nxd4 {[%emt 00:00:02] [%clk 00:01:22]} 20. Qd3 {[%emt 00:00:04] [%clk 00:01:09]}
Qf6 {[%emt 00:00:19] [%clk 00:01:06]} 21. Rhf1 {[%emt 00:00:04] [%clk 00:01:06]}
Nf5 {[%emt 00:00:26] [%clk 00:00:42]} 22. c3 {[%emt 00:00:10] [%clk 00:00:58]}
Qg5 {[%emt 00:00:04] [%clk 00:00:40]} 23. Rfe1 {[%emt 00:00:13] [%clk 00:00:48]}
Bg3 {[%emt 00:00:09] [%clk 00:00:32]} 24. Re2 {[%emt 00:00:07] [%clk 00:00:43]}
Kg7 {[%emt 00:00:25] [%clk 00:00:10]} 25. Nb5 {[%emt 00:00:01] [%clk 00:00:43]}
Bf4 {[%emt 00:00:04] [%clk 00:00:08]} 26. Rde1 {[%emt 00:00:05] [%clk 00:00:40]}
Qf6 {[%emt 00:00:03] [%clk 00:00:07]} 27. Bg4 {[%emt 00:00:08] [%clk 00:00:34]}
h5 {[%emt 00:00:04] [%clk 00:00:05]} 28. Bxf5 {[%emt 00:00:02] [%clk 00:00:34]}
gxf5 {[%emt 00:00:03] [%clk 00:00:05]} 29. Qf3 {[%emt 00:00:05] [%clk 00:00:31]}
Bh6 {[%emt 00:00:03] [%clk 00:00:04]} 30. Nc7 {[%emt 00:00:06] [%clk 00:00:26]}
Qg6 {[%emt 00:00:03] [%clk 00:00:03]} 31. Nxe8+ {[%emt 00:00:03] [%clk
00:00:26]} Rxe8 {[%clk 00:00:05]} 32. Ka1 {[%emt 00:00:04] [%clk 00:00:24]} f4
{[%emt 00:00:02] [%clk 00:00:05]} 33. Rd1 {[%emt 00:00:05] [%clk 00:00:20]} Qf5
{[%emt 00:00:02] [%clk 00:00:05]} 34. Qd3 {[%emt 00:00:08] [%clk 00:00:15]} Qf7
{[%clk 00:00:05]} 35. Qd4+ {[%emt 00:00:02] [%clk 00:00:15]} Kg8 {[%emt
00:00:01] [%clk 00:00:06]} 36. Re5 {[%emt 00:00:02] [%clk 00:00:15]} Bg7 {[%clk
00:00:08]} 37. Rg5 {[%emt 00:00:02] [%clk 00:00:14]} Kf8 {[%clk 00:00:09]} 38.
Qd3 {[%emt 00:00:07] [%clk 00:00:10]} Bh6 {[%emt 00:00:05] [%clk 00:00:06]} 39.
Rg6 {[%emt 00:00:02] [%clk 00:00:10]} Bg7 {[%clk 00:00:07]} 40. Rf1 {[%emt
00:00:02] [%clk 00:00:09]} e5 {[%clk 00:00:08]} 41. Rd6 {[%emt 00:00:02] [%clk
00:00:10]} d4 {[%emt 00:00:03] [%clk 00:00:07]} 42. cxd4 {[%emt 00:00:03] [%clk
00:00:09]} e4 {[%clk 00:00:08]} 43. Qe2 {[%emt 00:00:04] [%clk 00:00:07]} Kg8
{[%emt 00:00:01] [%clk 00:00:09]} 44. d5 {[%emt 00:00:04] [%clk 00:00:05]} Qf5
{[%emt 00:00:03] [%clk 00:00:08]} 45. c6 {[%emt 00:00:02] [%clk 00:00:06]} Qe5
{[%emt 00:00:02] [%clk 00:00:08]} 46. Rd7 {[%clk 00:00:06]} bxc6 {[%emt
00:00:03] [%clk 00:00:07]} 47. dxc6 {[%emt 00:00:01] [%clk 00:00:07]} Rb8 {[%emt
00:00:02] [%clk 00:00:07]} 48. c7 {[%emt 00:00:05] [%clk 00:00:04]} Rxb2 {[%emt
00:00:02] [%clk 00:00:07]} 49. c8=Q+ {[%emt 00:00:02]} Kh7 {[%clk 00:00:08]} 50.
Rxg7+ {[%emt 00:00:01] [%clk 00:00:06]} 1-0

[Site "Europe Echecs"]

[Event "Championnat d'Europe de Blitz"]
[Date "2024.12.09"]
[White "Kizov, Atanas"]
[Black "Ribeiro, Rodrigo"]
[WhiteElo "2396"]
[BlackElo "2143"]
[Round "10.47"]
[Result "1/2-1/2"]
[TimeControl "180+2"]

1. d4 {[%clk 00:03:03]} d5 {[%clk 00:03:04]} 2. c4 {[%emt 00:00:03] [%clk
00:03:04]} e6 {[%clk 00:03:06]} 3. Nf3 {[%clk 00:03:04]} Nf6 {[%clk 00:03:07]}
4. g3 {[%emt 00:00:01] [%clk 00:03:05]} dxc4 {[%emt 00:00:02] [%clk 00:03:07]}
5. Bg2 {[%emt 00:00:01] [%clk 00:03:05]} Bd7 {[%emt 00:00:03] [%clk 00:03:07]}
6. O-O {[%emt 00:00:07] [%clk 00:03:00]} Bc6 {[%emt 00:00:01] [%clk 00:03:08]}
7. Nc3 {[%emt 00:00:06] [%clk 00:02:56]} Nbd7 {[%emt 00:00:05] [%clk 00:03:05]}
8. e3 {[%emt 00:00:05] [%clk 00:02:53]} Be7 {[%emt 00:00:04] [%clk 00:03:03]} 9.
Qe2 {[%clk 00:02:53]} Nb6 {[%emt 00:00:05] [%clk 00:03:00]} 10. e4 {[%emt
00:00:06] [%clk 00:02:49]} O-O {[%emt 00:00:02] [%clk 00:03:01]} 11. Rd1 {[%emt
00:00:02] [%clk 00:02:49]} Bb4 {[%emt 00:00:09] [%clk 00:02:54]} 12. Ne5 {[%emt
00:00:02] [%clk 00:02:49]} Qe8 {[%emt 00:00:23] [%clk 00:02:33]} 13. Bg5 {[%emt
00:00:09] [%clk 00:02:41]} Be7 {[%emt 00:00:25] [%clk 00:02:10]} 14. Nxc6 {[%emt
00:00:17] [%clk 00:02:27]} bxc6 {[%emt 00:00:01] [%clk 00:02:11]} 15. Rac1
{[%emt 00:00:10] [%clk 00:02:18]} Rd8 {[%emt 00:00:06] [%clk 00:02:07]} 16. h4
{[%emt 00:00:11] [%clk 00:02:10]} Nfd7 {[%emt 00:00:11] [%clk 00:01:58]} 17. Qg4
{[%emt 00:00:11] [%clk 00:02:00]} Bxg5 {[%emt 00:00:08] [%clk 00:01:52]} 18.
hxg5 {[%emt 00:00:01] [%clk 00:02:01]} c5 {[%emt 00:00:09] [%clk 00:01:45]} 19.
d5 {[%emt 00:00:25] [%clk 00:01:38]} Ne5 {[%clk 00:01:46]} 20. Qe2 {[%clk
00:01:39]} Nd3 {[%emt 00:00:01] [%clk 00:01:47]} 21. Rc2 {[%clk 00:01:41]} exd5
{[%emt 00:00:03] [%clk 00:01:47]} 22. exd5 {[%emt 00:00:04] [%clk 00:01:39]}
Qxe2 {[%emt 00:00:06] [%clk 00:01:42]} 23. Rxe2 {[%emt 00:00:01] [%clk
00:01:39]} Rfe8 {[%emt 00:00:06] [%clk 00:01:39]} 24. Rxe8+ {[%emt 00:00:08]
[%clk 00:01:33]} Rxe8 {[%clk 00:01:40]} 25. b3 {[%clk 00:01:34]} Re1+ {[%emt
00:00:44] [%clk 00:00:57]} 26. Rxe1 {[%emt 00:00:04] [%clk 00:01:33]} Nxe1
{[%clk 00:00:58]} 27. bxc4 {[%emt 00:00:06] [%clk 00:01:29]} Nxg2 {[%emt
00:00:03] [%clk 00:00:57]} 28. Kxg2 {[%clk 00:01:30]} Nxc4 {[%emt 00:00:01]
[%clk 00:00:58]} 29. Nb5 {[%emt 00:00:01] [%clk 00:01:31]} Nb6 {[%emt 00:00:46]
[%clk 00:00:13]} 30. Nxc7 {[%emt 00:00:02] [%clk 00:01:31]} Kf8 {[%emt 00:00:05]
[%clk 00:00:10]} 31. Kf3 {[%emt 00:00:05] [%clk 00:01:28]} Ke7 {[%emt 00:00:03]
[%clk 00:00:09]} 32. Ke4 {[%clk 00:01:30]} Kd7 {[%emt 00:00:03] [%clk 00:00:08]}
33. Nb5 {[%emt 00:00:02] [%clk 00:01:29]} a6 {[%emt 00:00:02] [%clk 00:00:09]}
34. Nc3 {[%clk 00:01:30]} Kd6 {[%clk 00:00:11]} 35. a4 {[%emt 00:00:03] [%clk
00:01:29]} Nc4 {[%emt 00:00:07] [%clk 00:00:06]} 36. Kd3 {[%emt 00:00:06] [%clk
00:01:24]} Ne5+ {[%emt 00:00:06] [%clk 00:00:03]} 37. Ke4 {[%emt 00:00:01] [%clk
00:01:25]} Nd7 {[%clk 00:00:04]} 38. a5 {[%emt 00:00:04] [%clk 00:01:22]} Ne5
{[%clk 00:00:05]} 39. f4 {[%emt 00:00:02] [%clk 00:01:22]} Nc4 {[%clk 00:00:07]}
40. Kd3 {[%emt 00:00:01] [%clk 00:01:23]} 1/2-1/2

[Site "Europe Echecs"]